Cogmind - Beta 15 @@@ ROGUE MODE // 2025.05.13 @ 16:09:26 Player: OJ Result: Core destroyed Performance ------------- Evolutions (2) 1000 Regions Visited (6) 1200 Robots Destroyed (116) 580 Value Destroyed (3878) 3878 Prototype IDs (9) 180 Alien Tech Used (0) 0 Bonus (316) 316 TOTAL SCORE: 7154 Bonus ------- High Alert Combat Kills 250 Follower Combat Kills 66 Cogmind --------- Core Integrity 0/550 Matter 287/300 Energy 100/100 System Corruption 3% Temperature Cool (0) Movement Core (50) Location -8/Storage Parts ------- > --- POWER (1) -------- (None) > --- PROPULSION (4) --- (None) > --- UTILITY (4) ------ (None) > --- WEAPON (2) ------- (None) > --- INVENTORY (5) ---- Light Treads Light Treads Improved Signal Interpreter Improved Utility Shielding Shield Generator Peak State ------------ > --- POWER ------------ Cooled Ion Engine > --- PROPULSION ------- Advanced Treads Advanced Treads Advanced Treads Advanced Treads > --- UTILITY ---------- High-capacity Storage Unit Advanced Targeting Computer Medium Armor Plating System Shield > --- WEAPON ----------- Plasma Cannon Plasma Cannon > --- INVENTORY -------- Cooled Ion Engine Light Treads Light Treads Improved Treads Advanced Treads Advanced Heat Sink Cooling System High-capacity Matter Pod Improved Signal Interpreter Improved Utility Shielding Improved Light Armor Plating Improved Light Armor Plating Improved Light Armor Plating Reflective Plating Shield Generator Precision Beam Rifle Precision Beam Rifle Plasma Cannon Enhanced Autogun Rocket Launcher [Rating: 37] Favorites ----------- Power Cooled Ion Engine Engine Cooled Ion Engine Propulsion Light Treads Treads Light Treads Utility Large Storage Unit Device Cooling System Storage Large Storage Unit Processor Advanced Targeting Computer Hackware System Shield Protection Medium Armor Plating Weapon Precision Beam Rifle Energy Gun Precision Beam Rifle Energy Cannon Plasma Cannon Ballistic Gun Assault Rifle Ballistic Cannon Improved Light Cannon Launcher Rocket Launcher Build | -11 -10 -10 -9 -9 -8 -8 ------- Run | Yrd Mat Min Mat Min Mat Sto Slots Evolved 4 | . . . 2 . 2 . Power . | . . . . . . . Propulsion 2 | . . . 1 . 1 . Utility 2 | . . . 1 . 1 . Weapon . | . . . . . . . Parts Attached 69 | 6 4 . 17 . 25 17 Power 5 | 1 1 . 1 . . 2 Engine 5 | 1 1 . 1 . . 2 Core . | . . . . . . . Reactor . | . . . . . . . Propulsion 28 | 2 . . 6 . 12 8 Treads 28 | 2 . . 6 . 12 8 Leg . | . . . . . . . Wheel . | . . . . . . . Hover . | . . . . . . . Flight . | . . . . . . . Utility 17 | 1 2 . 3 . 7 4 Device 7 | . 1 . 1 . 4 1 Storage 3 | 1 1 . . . 1 . Processor 1 | . . . . . 1 . Hackware 1 | . . . . . . 1 Protection 5 | . . . 2 . 1 2 Artifact . | . . . . . . . Weapon 19 | 2 1 . 7 . 6 3 Energy Gun 6 | . . . 3 . 3 . Energy Cannon 5 | . 1 . 1 . 2 1 Ballistic Gun 5 | 2 . . 2 . 1 . Ballistic Cannon 1 | . . . 1 . . . Launcher 2 | . . . . . . 2 Special Weapon . | . . . . . . . Impact Weapon . | . . . . . . . Slashing Weapon . | . . . . . . . Piercing Weapon . | . . . . . . . Special Melee Weapon . | . . . . . . . Unidentified Prototypes 7 | . 1 . 5 . 1 . Parts Lost 23 | . . . 3 . 2 18 Power 3 | . . . . . . 3 Propulsion 8 | . . . 1 . . 7 Utility 5 | . . . 1 . 1 3 Weapon 7 | . . . 1 . 1 5 Highest Loss Streak 5 | . . . 1 . 1 5 To Critical Strikes . | . . . . . . . Average Backups 14 | . 6 12 14 15 16 15 Power . | . 1 2 1 1 1 . Propulsion 2 | . . . 1 1 2 5 Utility 7 | . 2 7 8 8 9 7 Weapon 3 | . 2 3 4 4 4 2 Tool/Special . | . . . . . . . Unused Backups 25 | . 1 . 10 . 4 10 Power 3 | . 1 . 2 . . . Propulsion 3 | . . . . . . 3 Utility 13 | . . . 5 . 2 6 Weapon 6 | . . . 3 . 2 1 Tool/Special . | . . . . . . . Average Slot Usage (%) 97 | . 96 100 97 100 99 95 Engine 9 | . 14 14 10 11 9 8 Treads 33 | . 28 28 32 33 36 34 Device 10 | . 10 14 10 11 12 8 Storage 9 | . 14 14 11 11 9 8 Processor 3 | . . . . . 5 8 Protection 8 | . . . 9 11 8 8 Energy Gun 7 | . . . 12 22 7 1 Energy Cannon 6 | . 11 14 1 . 10 9 Ballistic Gun 1 | . 16 14 . . . . Ballistic Cannon 2 | . . . 7 . . . Launcher 1 | . . . . . . 6 Peak Build Rating 37 | 6 13 13 24 21 36 37 Average Rating 26 | 4 11 13 20 21 30 32 On Entrance 15 | . 6 13 13 21 21 36 Naked Turns 32 | . . . . . . 32 Heaviest Build 71 | 13 36 36 42 40 71 71 Greatest Support 89 | 40 40 40 63 60 88 89 Greatest Overweight (x) 1 | . . . 1 . . 1 Average Overweight (x) . | . . . . . . . Largest Inventory Capacity 20 | 8 15 15 15 15 20 20 Average Capacity 16 | 7 11 15 15 15 17 19 Most Carried 20 | 1 12 12 15 15 20 20 Average Carried 14 | . 7 12 14 15 16 15 Final Capacity 20 | 8 15 15 15 15 20 5 Final Carried 20 | 1 12 12 15 15 20 5 Class Distribution -------------------- 55% | Mutant 27% | Scavenger-Mutant 17% | Commander-Mutant Dominant Class ---------------- Mutant | -10/Materials Mutant | -10/Mines Mutant | -9/Materials Scavenger-Mutant | -9/Mines Mutant | -8/Materials Commander-Mutant | -8/Storage Resources | -11 -10 -10 -9 -9 -8 -8 ----------- Run | Yrd Mat Min Mat Min Mat Sto Matter Collected 1603 | 245 . . 691 2 395 270 Remotely . | . . . . . . . Salvage Created 4701 | . 27 . 882 5 1536 2251 Parts 235 | . 2 . 50 3 70 110 Haulers Intercepted 10 | . . . 4 . 2 4 Recyclers Shooed 4 | . . . 1 . 1 2 Parts Field Recycled . | . . . . . . . Retrieved Matter . | . . . . . . . Parts Self-Destructed . | . . . . . . . Prevented . | . . . . . . . Kills | -11 -10 -10 -9 -9 -8 -8 ------- Run | Yrd Mat Min Mat Min Mat Sto Combat Hostiles Destroyed 87 | . . . 22 . 26 39 Guns 24 | . . . 8 . 12 4 Cannons 37 | . . . 12 . 11 14 AOE 20 | . . . . . . 20 Classes Destroyed 14 | . 1 . 8 . 3 2 Worker 4 | . . . . . 2 2 Builder 4 | . . . 2 1 . 1 Hauler 10 | . . . 4 . 2 4 Recycler 1 | . . . . . 1 . Mechanic 1 | . . . . . . 1 Operator 4 | . . . 1 . 1 2 Watcher 5 | . 1 . 1 . 3 . Swarmer 10 | . . . 6 . 4 . Grunt 48 | . . . 10 . 14 24 Brawler 4 | . . . 1 . . 3 Duelist 3 | . . . 1 . . 2 Protector 1 | . . . . . . 1 Sentry 19 | . . . 4 . 6 9 Hunter 2 | . . . . . 2 . Best Kill Streak 16 | . 1 . 7 1 5 16 Combat Bots Only 13 | . . . 6 . 4 13 Max Kills in Single Turn 5 | . 1 . 2 1 2 5 Gunslinging 1 | . . . 1 . . . Exploded 4 | . . . . . . 4 Melee . | . . . . . . . Uniques/NPCs Destroyed . | . . . . . . . Combat | -11 -10 -10 -9 -9 -8 -8 -------- Run | Yrd Mat Min Mat Min Mat Sto Hostile Shots Fired 495 | . . . 149 16 128 202 Missed 126 | . . . 35 4 33 54 Hits 369 | . . . 114 12 95 148 Melee 9 | . . . 4 . . 5 Projectile 360 | . . . 110 12 95 143 AOE 12 | . . . 1 . . 11 Critical Strikes 24 | . . . 3 . 7 14 Damage Taken 5532 | . . . 1413 149 1131 2839 Core 675 | . . . 115 10 108 442 Absorbed by Shields 233 | . . . . . 225 8 Regen/Repaired (Parts) 200 | . . . 200 . . . Core Remaining (%) 89 | 100 . 100 . 68 . . Volleys Fired 287 | . 1 . 74 . 96 116 Largest 2 | . 2 . 2 . 2 2 Hottest 160 | . 88 . 122 . 160 160 Shots Fired 489 | . 2 . 148 . 192 147 Gun 237 | . 1 . 91 . 122 23 Cannon 240 | . 1 . 57 . 70 112 Launcher 12 | . . . . . . 12 Special . | . . . . . . . Kinetic 75 | . 1 . 57 . 17 . Thermal 402 | . 1 . 91 . 175 135 Explosive 6 | . . . . . . 6 Electromagnetic 6 | . . . . . . 6 Robot Hit Streak 19 | . 2 . 18 . 16 19 Robot Miss Streak 5 | . . . 1 . 3 5 Penetration Max . | . . . . . . . Secondary Targets 2 | . . . 1 . 1 . Max Gunslinging Chain 1 | . . . 1 . 1 . Shots Hit Robots 347 | . 2 . 112 . 133 100 Core Hits 170 | . 1 . 34 . 55 80 Critical Kills 3 | . . . . . 2 1 Critical Parts Destroyed . | . . . . . . . Critical Strikes 17 | . . . 8 . 7 2 Burn 13 | . . . 7 . 5 1 Meltdown 3 | . . . . . 2 1 Blast 1 | . . . 1 . . . Melee Attacks . | . . . . . . . Impact . | . . . . . . . Slashing . | . . . . . . . Piercing . | . . . . . . . Sneak Attacks . | . . . . . . . Combat Hostiles . | . . . . . . . Follow-up Attacks . | . . . . . . . Damage Inflicted 9370 | . 34 . 2130 14 2868 4324 Guns 3054 | . 14 . 1236 . 1406 398 Cannons 4170 | . 20 . 894 . 1377 1879 Explosions 1999 | . . . . . . 1999 Melee . | . . . . . . . Ramming 147 | . . . . 14 85 48 Kinetic 1005 | . 14 . 894 . 97 . Thermal 6726 | . 20 . 1236 . 2686 2784 Explosive 581 | . . . . . . 581 Electromagnetic 911 | . . . . . . 911 Impact . | . . . . . . . Slashing . | . . . . . . . Piercing . | . . . . . . . Highest Corruption 3 | . . . . . 1 3 Average Corruption 1 | . . . . . 1 1 Corruption Purged . | . . . . . . . Corruption Blocked . | . . . . . . . Effects 22 | . . . . . 14 8 Message Errors 6 | . . . . . 4 2 Matter Fused 8 | . . . . . 7 1 Heat Flow Errors 2 | . . . . . 1 1 Energy Discharges 2 | . . . . . 2 . Parts Fused 1 | . . . . . . 1 Data Loss (minor) 2 | . . . . . . 2 Misfires 1 | . . . . . . 1 Overload Shots . | . . . . . . . Overflow Damage 198 | . . . . . 22 176 Projectiles 62 | . . . . . 15 47 Explosions 129 | . . . . . . 129 Melee 7 | . . . . . 7 . Knockbacks 7 | . . . 6 . 1 . Impact 1 | . . . . . 1 . Kinetic 6 | . . . 6 . . . Secondary . | . . . . . . . Self-Inflicted Damage 228 | . . . . . . 228 Shots 8 | . . . . . . 8 Rammed 20 | . . . . 3 10 7 Targets Rammed 21 | . . . . 4 10 7 Kicked . | . . . . . . . Crushed 1 | . . . . 1 . . Highest Temperature 430 | . . . 213 . 237 430 Average Temperature 84 | . . . 60 . 58 149 Received Heat Transfer 2250 | . . . 351 81 537 1281 Effects 5 | . . . . . . 5 Shutdowns 2 | . . . . . . 2 Energy Bleed 1 | . . . . . . 1 Interference 2 | . . . . . . 2 Siege Activations . | . . . . . . . Martial Activations . | . . . . . . . Shielding Activations . | . . . . . . . Robots Disrupted . | . . . . . . . Combat Hostiles . | . . . . . . . Robots Corrupted . | . . . . . . . Combat Hostiles . | . . . . . . . Parts Fried 2 | . . . . . . 2 Impact Corruptions 1 | . . . . . 1 . Robots Melted 7 | . . . 2 . 4 1 Combat Hostiles 6 | . . . 2 . 3 1 Parts Melted 30 | . . . 9 . 10 11 Heat Transferred 14313 | . 37 . 3219 . 5882 5175 Parts Sabotaged . | . . . . . . . Parts Stolen . | . . . . . . . Parts Stripped . | . . . . . . . Power Chain Reactions 6 | . . . . . . 6 Alert | -11 -10 -10 -9 -9 -8 -8 ------- Run | Yrd Mat Min Mat Min Mat Sto Maximum Alert Level 3 | . . . 1 . . 3 Low Security (%) 73 | 100 100 100 86 100 100 14 Level 1 16 | . . . 13 . . 47 Level 2 9 | . . . . . . 34 Level 3 . | . . . . . . 3 Level 4 . | . . . . . . . Level 5 . | . . . . . . . High Security . | . . . . . . . Max Security . | . . . . . . . Peak Influence 776 | . 7 . 324 115 199 776 Initial 115 | . . . . 115 . 69 Average 153 | . . . 108 45 82 355 Influence Increases 2999 | . 14 . 762 5 841 1377 Destroy 0b10 Robot/C 1760 | . . . 480 . 520 760 Destroy 0b10 Robot/NC 155 | . 5 . 45 5 45 55 Destroy Leader 480 | . 2 . 140 . 160 178 Allied During Kill 107 | . . . 8 . . 99 Successful Hack 119 | . 7 . 42 . 38 32 Disable Machine 150 | . . . 30 . 15 105 Destroy Structure 123 | . . . 2 . 18 103 Partial Spotted 15 | . . . 15 . . . Lose Combat Pursuer 90 | . . . . . 45 45 Influence Decreases 2227 | . 14 . 466 301 675 771 Entered New Map 278 | . . . . 181 . 97 Time Decay 1529 | . 14 . 396 120 505 494 Lost Part 230 | . . . 30 . 20 180 Lost Ally 40 | . . . 40 . . . Purge Threat 150 | . . . . . 150 . Squads Dispatched 19 | . 1 . 2 . 5 11 Investigation 6 | . 1 . 1 . 2 2 Extermination . | . . . . . . . Reinforcement 6 | . . . 1 . 2 3 Assault 3 | . . . . . . 3 Garrison 4 | . . . . . 1 3 Intercept . | . . . . . . . Searches Triggered . | . . . . . . . Construction Impeded 2 | . . . . . 1 1 Haulers Reinforced . | . . . . . . . Active Scanning Responses . | . . . . . . . Cargo Convoy Interrupts . | . . . . . . . Stealth | -11 -10 -10 -9 -9 -8 -8 --------- Run | Yrd Mat Min Mat Min Mat Sto Distress Signals 5 | . . . 1 . 2 2 Communications Jammed . | . . . . . . . Distress Signals . | . . . . . . . Times Spotted 133 | . 1 . 33 3 39 57 Peak Tracking Total 10 | . 1 . 8 3 6 10 Tactical Retreats 5 | . . . . . 3 2 Traps | -11 -10 -10 -9 -9 -8 -8 ------- Run | Yrd Mat Min Mat Min Mat Sto Traps Triggered 5 | . 1 . 1 . 1 2 Indirectly . | . . . . . . . Trap Hack Attempts . | . . . . . . . Triggered . | . . . . . . . Disarmed . | . . . . . . . Reprogrammed . | . . . . . . . Reused . | . . . . . . . Traps Extracted . | . . . . . . . Installed . | . . . . . . . Triggered . | . . . . . . . Machines | -11 -10 -10 -9 -9 -8 -8 ---------- Run | Yrd Mat Min Mat Min Mat Sto Machines Disabled 11 | . . . 3 . 1 7 Max in Single Turn 1 | . . . 1 . 1 1 Garrison Access 1 | . . . . . . 1 Machines Repaired . | . . . . . . . Machines Dismantled . | . . . . . . . Machines Sabotaged . | . . . . . . . Overloaded Fab Kills . | . . . . . . . Hacking | -11 -10 -10 -9 -9 -8 -8 --------- Run | Yrd Mat Min Mat Min Mat Sto Machines Accessed 29 | . 2 . 11 . 10 6 Terminals 24 | . 2 . 10 . 7 5 Fabricators . | . . . . . . . Repair Stations 1 | . . . 1 . . . Recycling Units 1 | . . . . . 1 . Scanalyzers 2 | . . . . . 2 . Garrison Access 1 | . . . . . . 1 Total Hacks 100 | . 3 . 35 . 32 30 Successful 52 | . 1 . 20 . 19 12 Failed 48 | . 2 . 15 . 13 18 Catastrophic 4 | . . . 1 . 1 2 Database Lockouts . | . . . . . . . Manual 83 | . 4 . 32 . 24 23 Terminals 83 | . 3 . 30 . 23 27 Fabricators . | . . . . . . . Repair Stations 5 | . . . 5 . . . Recycling Units 4 | . . . . . 4 . Scanalyzers 5 | . . . . . 5 . Garrison Access 3 | . . . . . . 3 Terminal Hacks 13 | . 1 . 6 . 2 4 Part Schematic 3 | . 1 . 2 . . . Robot Analysis 3 | . . . 1 . . 2 Prototype ID Bank 1 | . . . 1 . . . Branch Access Points 2 | . . . . . 1 1 Terminal Index 2 | . . . 1 . . 1 Fabricator Index 1 | . . . 1 . . . Unreport Threat 1 | . . . . . 1 . Fabricator Hacks . | . . . . . . . Repair Station Hacks 4 | . . . 4 . . . Scan Component 2 | . . . 2 . . . Repair 2 | . . . 2 . . . Recycling Unit Hacks . | . . . . . . . Scanalyzer 5 | . . . . . 5 . Insert Component 2 | . . . . . 2 . Analyze 3 | . . . . . 3 . Garrison Access Hacks 1 | . . . . . . 1 Seal Access 1 | . . . . . . 1 Unauthorized Hacks 29 | . . . 10 . 12 7 Terminals 27 | . . . 10 . 10 7 Botnet 14 | . . . 5 . 5 4 Skim 13 | . . . 5 . 5 3 Fabricators . | . . . . . . . Repair Stations . | . . . . . . . Recycling Units 2 | . . . . . 2 . Reject 1 | . . . . . 1 . Mask 1 | . . . . . 1 . Scanalyzers . | . . . . . . . Garrison Access . | . . . . . . . Data Cores Recovered 1 | . . . . . 1 . Used . | . . . . . . . Hacking Detections 26 | . 1 . 10 . 9 6 Full Trace Events 2 | . . . . . 1 1 Feedback Events 1 | . . . . . 1 . Corruption 1 | . . . . . 1 . Feedback Blocked . | . . . . . . . Robot Schematics Acquired . | . . . . . . . Robots Built . | . . . . . . . Authchips . | . . . . . . . Time . | . . . . . . . Total Robot Build Rating . | . . . . . . . Part Schematics Acquired 5 | . 1 . 2 . 2 . Parts Built . | . . . . . . . Authchips . | . . . . . . . Time . | . . . . . . . Total Part Build Rating . | . . . . . . . Parts Repaired 2 | . . . 2 . . . Time 83 | . . . 83 . . . Parts Recycled . | . . . . . . . Recycled Matter . | . . . . . . . Retrieved Matter . | . . . . . . . Retrieved Components . | . . . . . . . Parts Scanalyzed 2 | . . . . . 2 . Part Schematics Acquired 2 | . . . . . 2 . Parts Damaged . | . . . . . . . Bothacking | -11 -10 -10 -9 -9 -8 -8 ------------ Run | Yrd Mat Min Mat Min Mat Sto Used RIF Installer . | . . . . . . . Robots Hacked . | . . . . . . . Non-combat . | . . . . . . . Combat . | . . . . . . . Robot Hacks Applied . | . . . . . . . Relay Couplers Released 1 | . . . . . . 1 Machine Destruction 1 | . . . . . . 1 Fabnet Peak Effective % . | . . . . . . . Robots Rewired . | . . . . . . . Allies Hacked . | . . . . . . . Hacks Repelled . | . . . . . . . Allies | -11 -10 -10 -9 -9 -8 -8 -------- Run | Yrd Mat Min Mat Min Mat Sto Total Allies 12 | . . 2 . . . 10 Largest Group 10 | . . 2 2 . . 10 Highest-Rated Group 173 | . . 49 49 . . 173 Highest-Rated Ally 31 | . . 31 31 . . 29 Total Orders 1 | . . . . . . 1 STAY 1 | . . . . . . 1 Ally Attacks 15 | . . . 15 . . . Total Damage 229 | . . . 229 . . . Kills 3 | . . . 3 . . . Allies Corrupted . | . . . . . . . Allies Melted . | . . . . . . . Intel | -11 -10 -10 -9 -9 -8 -8 ------- Run | Yrd Mat Min Mat Min Mat Sto Active Infowar (turns) . | . . . . . . . Robot Analysis Total 3 | . . . 1 . . 2 Derelict Logs Recovered 1 | . . . . 1 . . Drone Launches . | . . . . . . . Drone Recoveries . | . . . . . . . Exploration | -11 -10 -10 -9 -9 -8 -8 ------------- Run | Yrd Mat Min Mat Min Mat Sto Turns Passed 4982 | 81 236 33 1449 312 1560 1311 Spaces Moved 2296 | 47 135 18 622 187 735 552 Core 64 | 3 . . . . . 61 Treads 2232 | 44 135 18 622 187 735 491 Legs . | . . . . . . . Wheels . | . . . . . . . Hover . | . . . . . . . Flight . | . . . . . . . Fastest Speed 50 | 50 160 160 160 160 145 50 Average Speed 152 | 152 160 160 160 160 151 139 Slowest Speed 240 | 160 160 160 240 160 160 232 Overloaded Moves . | . . . . . . . Propulsion Burnouts . | . . . . . . . Robots Hopped . | . . . . . . . Potential Cave-ins . | . . . . . . . Cave-ins Triggered . | . . . . . . . Exploration Rate (%) 40 | 4 24 12 57 52 65 71 Regions Visited 6 Branch Regions 3 Pre-discovered Areas 4 | . . . . . 4 . Known Exits Taken 2 | . . . . 1 1 . Unknown Exits Taken 4 | 1 1 1 1 . . . Scrap Searched . | . . . . . . . Spaces Dug 4 | . . . . . . 4 Terrain Destroyed 122 | . . . . . 14 108 Melee . | . . . . . . . Projectile 42 | . . . . . 14 28 AOE 80 | . . . . . . 80 Terrain Rammed . | . . . . . . . Walls Destroyed . | . . . . . . . Machines Disabled . | . . . . . . . Actions | -11 -10 -10 -9 -9 -8 -8 --------- Run | Yrd Mat Min Mat Min Mat Sto Total 3287 | 53 153 22 927 199 998 935 Wait 510 | . . 5 177 5 95 228 Move 2290 | 46 134 17 621 186 734 552 Hop . | . . . . . . . Pick Up 49 | 1 12 . 15 1 14 6 Fast Attach 17 | 6 1 . 7 . . 3 Attach 19 | . . . 2 . 4 13 Detach . | . . . . . . . Swap 51 | . 3 . 13 1 25 9 Drop 42 | . 2 . 18 2 20 . Fire 287 | . 1 . 74 . 96 116 Melee . | . . . . . . . Ram 1 | . . . . . . 1 Kick . | . . . . . . . Crush 19 | . . . . 4 10 5 Escape Stasis 2 | . . . . . . 2 Rewire . | . . . . . . . Trap . | . . . . . . . Miscellaneous . | . . . . . . . Route ------- -11/Scrapyard -10/Materials -10/Mines -9/Materials (discovered 4 exits: *Mat x3 / [*Min]) -9/Mines (discovered 2 exits: *Mat x2) -8/Materials (discovered 4 exits: [*Fac x2] / *Sto x2) -8/Storage (discovered 1 exit: Rec) History --------- Turn | Location | Event 23 | -11/Scrapyard | Discovered new exit (range 15) 82 | -11/Scrapyard | Entered Materials 185 | -10/Materials | Discovered new exit (range 12) 306 | -10/Materials | Build established: Mutant 318 | -10/Materials | Entered Mines 334 | -10/Mines | Discovered new exit (range 8) 351 | -10/Mines | Entered Materials 351 | -9/Materials | Accompanied by 2 allies 351 | -9/Materials | Evolved 2 slots: Propulsion x1, Utility x1 356 | -9/Materials | Led the pair of lost Derelicts to an unsafe place 576 | -9/Materials | Discovered new exit (range 13) 865 | -9/Materials | Identified exit to Materials 985 | -9/Materials | Learned Storage security intel 1088 | -9/Materials | Learned Recycling recycling unit intel 1122 | -9/Materials | Learned 4 Recycling zone layouts 1357 | -9/Materials | Repaired Cld. Ion Engine 1482 | -9/Materials | Repaired Med. Armor Plating 1582 | -9/Materials | Build established: Scavenger-Mutant 1800 | -9/Materials | Entered Mines 1867 | -9/Mines | Received a Rocket Launcher from a helpful Derelict 2077 | -9/Mines | Learned Materials stockpile data 2112 | -9/Mines | Entered Materials 2112 | -8/Materials | Evolved 2 slots: Propulsion x1, Utility x1 2288 | -8/Materials | Discovered new exit (range 16) 2337 | -8/Materials | Discovered new exit (range 6) 3077 | -8/Materials | Build established: Mutant 3377 | -8/Materials | Discovered new exit (range 16) 3392 | -8/Materials | Learned location of Extension (-6) 3454 | -8/Materials | Learned location of Zion (-6) 3501 | -8/Materials | Identified exit to Storage 3541 | -8/Materials | Discovered new exit (range 4) 3595 | -8/Materials | Garrison activated, responded to threat 3617 | -8/Materials | Learned 4 Factory zone layouts 3654 | -8/Materials | Learned Factory garrison access intel 3672 | -8/Materials | Entered Storage 3673 | -8/Storage | Identified exit to Recycling 3818 | -8/Storage | Lost 5 parts (1p2n1u1w) 3924 | -8/Storage | Lost 3 parts (1u2w) 3924 | -8/Storage | Garrison activated, responded to threat 3959 | -8/Storage | Destroyed 11 combat bots 4093 | -8/Storage | Assisted by bots powering up and referring to "LRC-V3" 4397 | -8/Storage | Build established: Commander-Mutant 4648 | -8/Storage | Lost 3 parts (2n1u) 4872 | -8/Storage | First assault squad dispatched 4933 | -8/Storage | Core integrity fell below 50% 4951 | -8/Storage | Released all parts (9) 4957 | -8/Storage | Core integrity fell below 20% 4961 | -8/Storage | Destroyed 13 combat bots 4981 | -8/Storage | Lost 3 parts (2p1w) 4983 | -8/Storage | Core destroyed Last Messages --------------- 04940_ Destroyed Cld. Ion Engine. 04940_ L-31 Rogue destroyed. 04949_ System corrupted: Imp. Treads fused. 04950_ Acquired Imp. Ion Engine. 04950_ Imp. Ion Engine destroyed. 04951_ Released Lgt. Treads. 04951_ Released Hcp. Storage Unit. 04951_ Released Adv. Targeting Computer. 04951_ Released Adv. Heat Sink. 04951_ Released Imp. Treads. 04951_ Released Lgt. Treads. 04951_ Released Imp. Light Armor Plating. 04951_ Released Adv. EMP Blaster. 04952_ R-06 Scavenger collects Corrupted Aluminum Leg. 04953_ U-05 Engineer lays Concrete. 04955_ Acquired 17 matter. 04956_ Terminal disabled. 04964_ Slammed into K-01 Serf. 04972_ Acquired 13 matter. 04983_ Slammed into K-01 Serf. Map ----- +----------------------------------------------------+ | ?????????# ""T"" # #???######## | | ?????????# # #????????### | | ?????????# /* !# ########## | | ?????????# * """=+ ! | | ????????## * """%# | | ????????# """!# ######## | | ????????## % #= ##?# | | ?????????##+##### !% ### | | ?????????# % = [ ##=== | | ?????????# *%! % #== | | ?????????# ####/# #== | | ?????????# # = = [ # """ | | ?????????# %+* * # """ | | ?????????+ #[ # """ | | ?????????# !# ![ # | | ?????????# # #+###### | | ?????????# # *# # #????? | | ?????????+ + ! ### #??### | | ??######### # # ## #### # | | ??# """ ## ###"" " =*! ## ## | | ??# """ #? ??#"""""#%#### ## | | ??# """ #? ?######## ### #^ " | | ??# + + T | | ???? #???########+### # " | | ?????? #??#?# ## ## | | ???#####@## #?# ## ###### | | # + k ## "T" + # | | # """" # ###### """ # # | | ? """" # #???############ # | | ? """"?# #???# / * %%+=""" | | ??""""?# #???# ########### # """ | | ?? ??# ##### #??# ## # """ | | ??###??# #??# ## ###### | | ???????# ##### #??#""" ## #????? | | ???????# #???# #??#""" ## #????? | | ???????# #???# #??#""" ## #????? | | ???????# #???#+#??# ??# #????? | | ???????# #??! ?##+##??# #????? | | ???????# #?# # #??# #????? | | ???????# #?# != + #??# #????? | | ????#+## #?# # #??# #????? | | ????# #?# ##*##??# #????? | | ????# #?# ! ##%##### #????? | | ????# #?######+##!!#### #????? | | ????# ######?# ##???? | | ????# # ! # ##???? | | ????# #?? # !*= ##???? | | ????# #??? ! + *%% #????? | | ????# #???? ####!## #????? | | ????# ####### #! !# #????? | +----------------------------------------------------+ Best States ------------- Heat Dissipation 53 Energy Generation 14 Energy Capacity 280 Matter Stores 300 Matter Capacity 300 Sight Range 16 Terrain Scan Density 10 Armor Coverage 225 Evasion (%) 50 Targeting Accuracy 8 Recoil Reduction 4 Defensive Hacking 10 Item Schematics ----------------- Huge Storage Unit | -10/Materials | Hacked Imp. Treads | -9/Materials | Hacked Med. Armor Plating | -9/Materials | Hacked Adv. Treads | -8/Materials | Scanalyzed Reflective Plating | -8/Materials | Scanalyzed Robot Schematics ------------------ None Fabricated ------------ Nothing Repaired ---------- Cld. Ion Engine | 7% | -9/Materials Med. Armor Plating | 18% | -9/Materials Alien Tech Used ----------------- None Achievements -------------- None Challenges ------------ None Game ------ Seed EncryptedThunderTrident Manual? 0 Play Time 01:02:22 Cumulative 102.4 hours Start 2025.05.13 @ 12:03:29 End 2025.05.13 @ 16:09:26 Sessions 4 Manual Loads 0 Difficulty Rogue Special Mode None Game No. 91 Rogue 91 Adventurer 0 Explorer 0 Win Type - Total 0 Types 0/0/0/0/0/0/0/0/0/0 Lore% 29 Gallery% 50 Achievement% 49 Wizard Run 0 Options --------- Layout 0 ASCII 0 Keyboard 0 Movement Mouse Keybinds 0 Fullscreen 1 Font 18/SmallcapsGlow Map View 76x50 Zoom Use 0% Tactical HUD 1 Map Filters NONE Filters NONE Steam 1 RUN: 13b0abb0-ca81-4bc5-8909-e7efbcf4a142